bitfinex/quotes_ETHUSD_20220119
["timestamp","ask_amount","ask_price","bid_price","bid_amount"]
[1642583417523,0.81202,3080.2,3079.9,0.00284212]
[1642583417724,0.81202,3080.2,3079.8,0.00341054]
[1642583418023,0.81202,3080.2,3079.8,0.13321054]
[1642583418223,0.81202,3080.2,3079.9,2.762596]
[1642583418424,0.81202,3080.2,3079.9,2.76543812]
[1642583418627,0.81202,3080.2,3080.0,2.7648697]
[1642583418823,0.81202,3080.2,3080.1,2.762596]
[1642583419025,0.81202,3080.2,3080.1,2.76430127]
[1642583419224,0.81202,3080.2,3080.1,0.00170527]
[1642583419626,0.81202,3080.2,3079.9,0.00284212]
[1642583419864,0.81202,3080.2,3079.8,0.00341054]
[1642583420066,0.81202,3080.2,3079.9,0.00284212]
[1642583420264,0.81202,3080.2,3079.8,0.00341054]
[1642583421871,0.81202,3080.2,3079.8,0.01547569]
[1642583422072,0.81185,3080.3,3079.9,2.762596]
[1642583422273,0.81185,3080.3,3079.9,2.76543812]
[1642583422473,0.81185,3080.3,3080.0,2.13927201]
[1642583422673,0.81185,3080.3,3080.1,2.762596]
[1642583422874,0.00113684,3080.6,3080.2,2.32746915]
[1642583423073,0.00113684,3080.6,3080.3,2.762596]
[1642583423274,0.00113684,3080.6,3080.4,2.00833233]
[1642583423473,0.81294684,3080.6,3080.5,5.662596]
[1642583423950,0.81294684,3080.6,3080.5,7.75908199]
[1642583424144,0.00113684,3080.6,3080.5,7.75908199]
[1642583424343,0.81164,3081.1,3080.6,7.2]
[1642583424543,0.81164,3081.1,3080.7,5.10491872]
[1642583424742,0.81448212,3081.1,3080.8,2.762596]
[1642583424943,0.00284212,3081.1,3080.8,4.18670539]
[1642583425144,0.00284212,3081.1,3080.9,2.762596]
[1642583430677,0.00284212,3081.1,3081.0,7.36332]
[1642583430880,0.00284212,3081.1,3081.0,10.255716]
[1642583431117,0.00284212,3081.1,3081.0,10.425916]
[1642583431923,0.71441212,3081.4,3081.1,4.9]
[1642583432126,0.71441212,3081.4,3081.2,2.762596]
[1642583432323,0.00113685,3081.3,3081.2,2.762596]
[1642583432725,0.00113685,3081.3,3081.2,7.66136067]
[1642583432925,0.00113685,3081.3,3081.2,7.66136112]
[1642583433125,0.00113685,3081.3,3081.2,7.07466208]
[1642583433425,0.00113685,3081.3,3081.0,0.46332]
[1642583433626,1.62438685,3081.3,3081.1,1.90866547]
[1642583433825,1.62438685,3081.3,3080.8,4.1026]
[1642583433826,1.62438685,3081.3,3080.8,6.04295963]
[1642583434029,1.62438685,3081.3,3080.9,2.76154]
[1642583434230,1.62438685,3081.3,3080.9,2.76267685]
[1642583434426,0.00113685,3081.3,3080.9,2.76267685]
[1642583434629,0.81269685,3081.3,3080.9,2.76267685]
[1642583434892,0.81269685,3081.3,3080.9,0.00113685]
[1642583435081,0.81269685,3081.3,3080.9,2.76255945]
[1642583438630,1.62373,3081.1,3080.9,0.00113685]
[1642583438832,4.8798,3081.0,3080.9,0.00113685]
[1642583439030,5.99176,3081.0,3080.5,0.00341054]
[1642583439233,0.81191,3080.9,3080.5,0.00341054]
[1642583439436,0.1298,3080.8,3080.1,2.02833738]
[1642583439631,0.1298,3080.8,3080.2,2.76212086]
[1642583439832,2.56565,3080.8,3080.2,2.76723667]
[1642583440032,2.56565,3080.8,3080.3,2.76666825]
[1642583440230,2.56565,3080.8,3080.4,2.76212086]
[1642583440430,2.56565,3080.8,3080.4,2.76609982]
[1642583440431,2.43585,3080.8,3080.4,2.76609982]
[1642583440631,0.81186,3080.7,3080.5,2.7655314]
[1642583440830,0.81186,3080.7,3080.6,2.76212086]
[1642583441033,0.81186,3080.7,3080.6,2.76496298]
[1642583441232,4.65851697,3080.8,3080.6,2.76496298]
[1642583441233,4.78831697,3080.8,3080.6,0.00284212]
[1642583441434,4.65851697,3080.8,3080.6,0.00284212]
[1642583441731,0.1298,3080.7,3080.3,2.76666825]
[1642583441934,0.1298,3080.7,3080.4,2.76212086]
[1642583442131,0.81192,3080.6,3080.4,2.76609982]
[1642583442369,0.81192,3080.6,3080.5,2.7655314]
[1642583442370,1.62383,3080.6,3080.5,2.7655314]
[1642583442571,0.81191,3080.6,3080.5,0.00341054]
[1642583442970,0.81191,3080.6,3080.0,0.00625266]
[1642583443173,0.81191,3080.6,3080.1,2.76212086]
[1642583443577,0.81191,3080.6,3080.2,0.00511581]
[1642583443776,0.81191,3080.6,3080.3,2.76212086]
[1642583443979,0.1298,3080.5,3080.3,2.76212086]
[1642583444177,1.7539,3080.5,3080.4,0.00397896]
[1642583444374,1.7539,3080.5,3080.4,2.76609982]
[1642583444579,3.67799,3080.5,3080.4,2.7623089]
[1642583444775,1.92417,3080.4,3079.8,7.4518]
[1642583444977,0.1298,3080.3,3079.7,7.93984318]
[1642583445178,0.94189,3080.3,3079.9,0.00284212]
[1642583445580,0.94189,3080.3,3079.7,3.7968]
[1642583445581,2.4363852,3080.2,3079.7,3.7968]
[1642583445781,0.81217,3080.0,3079.7,3.7968]
[1642583445982,1.69167576,3079.8,3079.5,0.0022737]
[1642583446225,2.63361576,3079.8,3079.5,0.0022737]
[1642583446427,4.65,3079.7,3079.5,0.0022737]
[1642583447025,6.27436,3079.7,3079.5,0.0022737]
[1642583448525,0.3,3079.6,3079.5,0.0022737]
[1642583450474,6.27436,3079.7,3079.5,0.0022737]
[1642583450674,0.3,3079.6,3079.5,0.0022737]
[1642583450877,7.5,3079.6,3078.8,11.01023654]
[1642583451078,0.81232,3079.3,3078.8,11.01023654]
[1642583451278,0.81232,3079.3,3079.0,0.00341054]
[1642583451479,0.3,3079.2,3079.0,0.00341054]
[1642583451676,5.5798,3079.1,3079.0,0.00341054]
[1642583451875,5.5798,3079.1,3078.6,3.6808]
[1642583451876,0.1298,3079.1,3078.6,3.6808]
[1642583452079,3.3796482,3079.1,3078.6,3.6808]
[1642583452281,3.3796482,3079.1,3078.7,0.00170527]
[1642583452482,1.75472,3079.1,3078.7,0.00170527]
[1642583452978,0.94226,3079.1,3078.7,0.00170527]
[1642583453481,1.62478,3078.9,3078.7,0.00170527]
[1642583454037,0.81238,3079.1,3078.9,2.79619943]
[1642583455540,1.11238,3079.1,3078.9,2.79619943]
[1642583455739,3.5495521,3079.1,3078.9,2.79619943]
[1642583456141,3.5495521,3079.1,3078.2,3.6123]
[1642583456142,0.1298,3079.0,3078.2,3.6123]
[1642583456341,1.62506,3078.8,3078.2,3.6123]
[1642583456542,3.55009,3078.8,3078.3,0.0022737]
[1642583456741,0.8125011,3078.7,3078.3,0.0022737]
[1642583456942,0.7625011,3078.7,3078.2,0.00284212]
[1642583457141,0.7625011,3078.7,3078.2,1.90140962]
[1642583457373,0.81252,3078.7,3078.2,0.00284212]
[1642583457782,0.8124771,3078.6,3078.2,0.00284212]
[1642583457976,1.1124771,3078.6,3078.2,0.00284212]
[1642583458176,0.8124771,3078.6,3078.2,0.00284212]
[1642583458378,0.00113684,3078.9,3078.3,0.1298]
[1642583458576,0.00113684,3078.9,3078.2,2.179608]
[1642583458777,0.00113684,3078.9,3078.4,0.00170527]
[1642583458979,0.00113684,3078.9,3078.5,0.1298]
[1642583459379,0.81344684,3078.9,3078.5,0.1298]
[1642583459779,0.00113684,3078.9,3078.6,2.76299002]
[1642583459980,0.00113684,3078.9,3078.7,0.18953618]
[1642583460384,0.00113684,3078.9,3078.8,9.96299002]
[1642583460780,0.00113684,3078.9,3078.8,2.76299002]
[1642583460981,0.00113684,3078.9,3078.7,2.76299002]
[1642583461223,0.00113684,3078.9,3078.8,5.81299002]
[1642583461624,0.00113684,3078.9,3078.8,2.76299002]
[1642583462026,0.00113684,3078.9,3078.8,7.05]
[1642583462226,0.00113684,3078.9,3078.8,9.81299002]
[1642583466484,0.00113684,3078.9,3078.8,11.28034965]
[1642583469025,0.81226,3079.2,3079.0,0.00227368]
[1642583469224,0.81226,3079.2,3079.0,2.7652637]
[1642583469424,0.00113685,3079.1,3079.0,2.7652637]
[1642583469827,0.00113685,3079.1,3079.0,4.7422842]
[1642583470026,0.00113685,3079.1,3079.0,10.6922842]
[1642583470526,0.00113685,3079.1,3079.0,2.7652637]
[1642583471329,0.00113685,3079.1,3079.0,0.00227368]
[1642583472675,0.13093685,3079.1,3079.0,0.00227368]
[1642583472878,0.00113685,3079.1,3079.0,0.00227368]
[1642583474486,0.30113685,3079.1,3079.0,0.00227368]
[1642583474688,0.30113685,3079.1,3078.1,2.56778]
[1642583474689,7.2,3079.0,3078.1,2.56778]
[1642583474888,3.848336,3078.9,3078.2,2.763721]
[1642583475086,0.3,3078.8,3078.2,0.00397896]
[1642583475290,0.5978,3078.7,3078.3,0.00341054]
[1642583475485,2.04137573,3078.6,3078.2,0.00397896]
[1642583475685,0.1298,3078.5,3078.2,0.00397896]
[1642583475891,1.75528,3078.5,3078.2,0.00397896]
[1642583476122,0.81273,3078.4,3078.2,0.00397896]
[1642583476327,2.7,3078.2,3076.8,4.2754815]
[1642583476530,2.7,3078.2,3076.7,8.94796185]
[1642583476531,0.1298,3078.1,3077.4,2.76415609]
[1642583476730,2.55386815,3078.1,3077.5,2.76415609]
[1642583476926,0.94257,3078.1,3077.5,2.76415609]
[1642583477126,1.7554074,3078.1,3077.6,0.00341054]
[1642583477327,0.8128,3077.9,3077.6,0.00341054]
[1642583477528,1.2426,3077.9,3077.6,0.00341054]
[1642583477726,1.2426,3077.9,3077.1,2.77054452]
[1642583477727,1.1128,3077.9,3077.1,2.77054452]
[1642583477930,1.1128,3077.9,3077.2,2.76997609]
[1642583478131,1.1128,3077.9,3077.3,2.76429186]
[1642583478333,0.8127,3077.8,3077.3,2.76940767]
[1642583478537,0.8127,3077.8,3077.4,2.76429186]
[1642583478933,0.8127,3077.8,3077.5,0.00397896]
[1642583479132,4.88949523,3077.9,3077.6,2.76429186]
[1642583479133,1.11264,3077.9,3077.6,2.76429186]
[1642583479334,0.8127428,3077.8,3077.6,2.76429186]
[1642583479542,5.99023,3077.7,3077.6,2.76429186]
[1642583479732,4.06444,3077.7,3077.6,2.76429186]
[1642583479978,4.36444,3077.7,3077.6,2.7677024]
[1642583480179,4.36444,3077.7,3077.6,0.00341054]
[1642583480382,4.06444,3077.7,3077.6,0.00341054]
[1642583480578,4.06444,3077.7,3077.0,0.00682108]
[1642583480780,1.62543,3077.9,3077.1,2.89409186]
[1642583480781,0.81264,3077.9,3077.1,2.89409186]
[1642583481086,1.62527,3078.0,3077.1,2.89409186]
[1642583481087,0.81256,3078.0,3077.9,1.48898481]
[1642583481282,1.62512,3078.6,3077.9,2.76429186]
[1642583481483,1.62512,3078.6,3078.0,2.76429186]
[1642583481683,0.00170527,3078.5,3078.1,2.76429186]
[1642583481885,1.62512,3078.4,3078.0,0.00113685]
[1642583482083,1.62625685,3078.4,3078.0,0.00113685]
[1642583482284,3.55158685,3078.4,3077.7,2.7668002]
[1642583482482,3.55158685,3078.4,3077.8,2.76623177]
[1642583482682,3.55158685,3078.4,3077.9,2.76395808]
[1642583482885,3.55158685,3078.4,3078.0,2.76395808]
[1642583482886,2.43795,3078.3,3078.0,2.76395808]
[1642583483086,0.4298,3078.2,3078.0,0.00113685]
[1642583483629,0.4298,3078.2,3077.8,2.76623177]
[1642583483630,0.81269,3078.1,3077.8,2.76623177]
[1642583483828,0.81269,3078.1,3077.9,2.76395808]
[1642583484029,0.81269,3078.1,3078.0,2.76395808]
[1642583484231,2.4380047,3078.1,3078.0,0.00113685]
[1642583484430,1.11267,3078.2,3078.1,1.98510716]
[1642583484629,1.11267,3078.2,3078.1,4.74906524]
[1642583484828,0.3,3078.2,3078.1,1.98510716]
[1642583485230,1.1126,3078.2,3078.1,1.98510716]
[1642583486932,1.2424,3078.2,3078.1,1.98510716]
[1642583487786,0.9424,3078.2,3078.1,1.98510716]
[1642583487987,0.8126,3078.2,3078.1,1.98510716]
[1642583488588,5.1384105,3078.1,3077.7,0.00284212]
[1642583488793,0.81281,3078.0,3077.7,0.00284212]
[1642583488989,4.36408,3078.0,3077.7,0.00284212]
[1642583489490,3.81625062,3077.9,3077.7,0.00284212]
[1642583489693,2.12981845,3077.8,3077.6,2.76479953]
[1642583489892,1.58087,3077.8,3077.7,2.76479953]
[1642583490089,1.58087,3077.8,3077.4,7.45]
[1642583490290,1.62581,3077.7,3077.4,7.45]
[1642583490491,1.75561,3077.7,3077.5,0.00113684]
[1642583490690,4.95230999,3077.7,3077.5,0.00113684]
[1642583490890,2.4388904,3077.6,3076.9,0.00454738]
[1642583491122,0.8130162,3077.4,3076.9,0.00454738]
[1642583491336,0.81307,3077.3,3076.9,0.00454738]
[1642583491529,0.3,3077.2,3076.9,0.00454738]
[1642583492531,3.5522261,3077.2,3076.9,0.00454738]
[1642583492733,2.20707832,3077.1,3076.9,0.00454738]
[1642583492930,3.6820261,3077.2,3076.9,0.00454738]
[1642583492931,2.8689561,3077.2,3076.9,0.00454738]
[1642583493532,1.62623,3077.0,3076.9,0.00454738]
[1642583493935,1.92623,3077.0,3076.5,0.00682108]
[1642583494232,0.8131,3076.9,3076.5,0.00682108]
[1642583494631,0.8131077,3076.8,3076.5,0.00682108]
[1642583494877,1.1131077,3076.8,3076.5,0.00682108]
[1642583495281,4.3653177,3076.8,3076.5,0.00682108]
[1642583496082,0.81304,3076.7,3076.5,0.00682108]
[1642583496486,0.78519088,3076.7,3076.5,0.00682108]
[1642583496682,0.78519088,3076.7,3076.3,0.00795793]
[1642583497084,1.59830478,3076.7,3076.3,0.00795793]
[1642583497290,0.81324,3076.5,3076.3,0.00795793]
[1642583497483,0.81324,3076.5,3076.2,0.00852635]
[1642583497484,1.11326,3076.4,3076.2,0.00852635]
[1642583497682,1.11326,3076.4,3075.9,0.01023162]
[1642583497683,1.92652,3076.4,3075.9,0.01023162]
[1642583497882,1.92652,3076.4,3075.8,0.01080004]
[1642583498484,2.73974,3076.4,3075.8,0.01080004]
[1642583498757,1.11313,3076.4,3075.8,1.50876189]
[1642583498958,0.81318,3076.2,3075.8,1.50876189]
[1642583499160,0.81318,3076.2,3075.6,5.64987815]
[1642583499161,0.81318,3076.2,3075.9,0.01023162]
[1642583499356,0.13,3076.7,3076.6,2.4986333]
[1642583499758,1.28116,3076.8,3076.6,2.50488596]
[1642583499961,3.5,3076.7,3076.6,2.50488596]
[1642583500160,3.5,3076.7,3076.6,2.4986333]
[1642583500756,3.5,3076.7,3076.6,3.94362091]
[1642583501356,5.12583,3077.5,3076.6,3.94362091]
[1642583501657,1.62569,3077.4,3076.7,0.00568423]
[1642583501863,1.92569,3077.4,3076.7,0.00568423]
[1642583502058,1.62569,3077.4,3076.7,0.00568423]
[1642583502255,1.62569,3077.4,3076.7,1.9605039]
[1642583502256,0.81285,3077.4,3076.7,1.9605039]
[1642583502474,0.81285,3077.4,3077.1,1.47746367]
[1642583502777,0.81285,3077.4,3077.2,0.00284211]
[1642583503372,0.81285,3077.4,3076.9,0.00454738]
[1642583503775,1.62572,3077.4,3076.9,0.00454738]
[1642583504179,1.62572,3077.4,3076.9,1.46851453]
[1642583504579,1.62572,3077.4,3077.0,0.00397896]
[1642583505381,1.62572,3077.4,3077.0,1.94994361]
[1642583505582,0.81279,3077.6,3077.0,2.05982039]
[1642583505783,3.5,3077.6,3077.1,0.13321054]
[1642583506230,3.25182685,3078.4,3077.1,0.13321054]
[1642583506231,3.25182685,3078.4,3077.2,0.00284211]
[1642583506430,3.25182685,3078.4,3077.3,0.1298]
[1642583506631,0.00341054,3078.3,3077.3,0.1298]
[1642583506831,0.81604054,3078.3,3077.6,1.30571173]
[1642583507035,0.00284212,3078.2,3077.6,1.30571173]
[1642583507533,0.0022737,3078.1,3077.4,0.00170527]
[1642583507931,0.00170527,3078.0,3077.3,0.16559369]
[1642583508430,0.81255,3078.5,3077.3,0.16559369]
[1642583508431,0.00113685,3077.9,3077.4,0.00170527]
[1642583508634,0.00113685,3077.9,3077.8,8.37289811]
[1642583508836,0.00397897,3078.4,3077.8,8.37289811]
[1642583509032,0.00113685,3077.9,3077.8,8.37289811]
[1642583509232,0.81244,3078.8,3077.8,8.67289811]
[1642583509233,0.00341054,3078.3,3077.8,8.67289811]
[1642583509435,0.8124295,3079.2,3077.8,8.67289811]
[1642583509436,3.685e-05,3077.9,3077.8,8.67289811]
[1642583509640,0.1298,3079.6,3078.3,0.02133081]
[1642583509894,0.14006847,3079.7,3078.3,0.02133081]
[1642583510079,0.14006847,3079.7,3078.4,2.76366578]
[1642583510278,3.5096632,3079.6,3078.5,8.51354657]
[1642583510477,0.1298,3079.5,3078.6,2.76366578]
[1642583510680,0.13889478,3079.5,3078.7,2.17262742]
[1642583510982,0.00852635,3079.4,3078.8,4.11578981]
[1642583511181,0.00852635,3079.4,3078.9,2.01742113]
[1642583511382,0.00795793,3079.3,3078.9,4.78108691]
[1642583511581,0.00795793,3079.3,3078.9,2.01742113]
[1642583511781,0.0073895,3079.2,3078.9,2.01742113]
[1642583512184,0.00682108,3079.1,3078.9,1.99028822]
[1642583512382,0.00682108,3079.1,3078.6,2.24210693]
[1642583512582,0.00625266,3079.0,3078.7,2.76361468]
[1642583512782,0.00625266,3079.0,3078.8,2.19318713]
[1642583512984,0.00568423,3078.9,3078.6,5.17391268]
[1642583513183,0.00568423,3078.9,3078.6,3.6641]
[1642583513382,0.00511581,3078.8,3078.6,3.6641]
[1642583513827,0.00454739,3078.7,3078.6,3.6641]
[1642583514236,0.00454739,3078.7,3078.6,4.94636466]
[1642583514532,0.1298,3080.0,3079.0,0.00909478]
[1642583514933,0.00511581,3079.6,3079.0,0.00909478]
[1642583515334,0.00454739,3079.5,3079.0,0.00909478]
[1642583515736,0.00397896,3079.4,3079.0,0.00909478]
[1642583516134,0.1298,3079.7,3079.0,0.00909478]
[1642583516135,0.00341054,3079.3,3079.0,0.00909478]
[1642583516535,0.00284211,3079.2,3079.0,0.00909478]
[1642583516935,0.00227369,3079.1,3079.0,0.00909478]
[1642583517576,0.00227369,3079.1,3079.0,3.70909478]
[1642583517775,0.00227369,3079.1,3079.0,0.00909478]
[1642583519475,0.00227369,3079.1,3079.0,3.40909478]
[1642583519882,0.00227369,3079.1,3079.0,0.00909478]
[1642583522941,2.18728375,3079.1,3079.0,0.00909478]
[1642583523140,0.81264,3078.9,3078.3,1.2957]
[1642583523337,0.81264,3078.9,3078.3,0.1298]
[1642583523338,0.94244,3078.8,3078.3,0.1298]
[1642583523539,0.3,3078.7,3078.4,0.00170527]
[1642583523739,0.1298,3078.6,3078.4,0.00170527]
[1642583523939,0.9423352,3078.6,3078.4,0.00170527]
[1642583525195,0.8125352,3078.6,3078.4,0.00170527]
[1642583526802,0.8125352,3078.6,3078.1,0.00341054]
[1642583526803,1.62541,3078.5,3078.1,0.00341054]
[1642583527002,3.3805953,3078.5,3078.1,0.00341054]
[1642583527204,1.62535,3078.4,3078.1,0.00341054]
[1642583527806,0.81267,3078.4,3078.1,0.00341054]
[1642583528637,0.81267,3078.3,3078.1,0.00341054]
[1642583528839,0.94247,3078.3,3078.1,0.00341054]
[1642583529839,1.925302,3078.3,3078.1,0.00341054]
[1642583530444,2.737992,3078.3,3078.1,0.00341054]
[1642583531040,2.867792,3078.3,3078.1,0.00341054]
[1642583531646,9.94840587,3078.2,3078.1,0.00341054]
[1642583531846,6.1,3078.1,3078.0,0.00076315]
[1642583532044,6.6978,3078.1,3078.0,0.00076315]
[1642583533087,0.8128711,3077.9,3077.2,4.3465]
[1642583533282,1.6256811,3077.9,3077.2,4.3465]
[1642583533486,0.81281,3077.9,3077.3,2.76929295]
[1642583533684,0.3,3077.8,3077.4,2.76474556]
[1642583533883,0.3,3077.8,3077.4,2.76872453]
[1642583534087,0.3,3077.8,3077.5,0.00341054]
[1642583534293,0.4298,3078.0,3077.5,0.00341054]
[1642583534591,1.62558,3077.7,3077.4,0.00397897]
[1642583534791,2.73838,3077.7,3077.4,0.00397897]
[1642583536330,3.55123,3077.7,3077.4,0.00397897]
[1642583536531,1.6256842,3077.6,3077.4,0.00397897]
[1642583537135,7.2798,3077.5,3077.4,0.00397897]
[1642583537336,0.08685632,3077.3,3076.9,0.1298]
[1642583537534,0.08685632,3077.3,3077.0,0.00227369]
[1642583537535,0.81307,3077.2,3077.0,0.00227369]
[1642583538734,1.62602,3077.2,3077.0,0.00227369]
[1642583538933,0.3,3077.1,3077.0,0.00227369]
[1642583539133,1.62602,3077.2,3077.0,0.00227369]
[1642583539334,0.3,3077.1,3077.0,0.00227369]
[1642583539534,2.4389375,3077.2,3076.7,2.76921276]
[1642583539740,0.81293,3077.0,3076.8,2.76864434]
[1642583539977,0.81293,3077.0,3076.8,0.00341054]
[1642583540178,2.43887,3077.0,3076.9,0.00284211]
[1642583540384,2.43887,3077.0,3076.7,2.76927292]
[1642583540585,0.3,3076.9,3076.8,2.76865624]
[1642583540786,0.81302,3076.9,3076.8,2.76865763]
[1642583540986,2.4388865,3077.0,3076.8,0.00341054]
[1642583540987,1.6258865,3077.0,3076.8,0.00341054]
[1642583542085,2.4388165,3077.0,3076.8,0.00341054]
[1642583542485,3.2518165,3077.0,3076.8,0.00341054]
[1642583542987,0.3,3076.9,3076.8,0.00341054]
[1642583543631,1.9261741,3076.9,3076.7,0.00397896]
[1642583543829,0.81309,3076.8,3076.7,0.00397896]
[1642583544229,3.00161192,3076.8,3076.7,0.00397896]
[1642583544633,4.00161192,3076.8,3076.7,0.00397896]
[1642583544833,7.50161192,3076.8,3076.7,0.00397896]
[1642583545034,7.80161192,3076.8,3076.7,0.00397896]
[1642583546033,5.61309,3076.8,3076.7,0.00397896]
[1642583546237,5.31309,3076.8,3076.7,0.00397896]
[1642583546435,4.31309,3076.8,3076.7,0.00397896]
[1642583546835,5.61309,3076.8,3076.7,0.00397896]
[1642583547035,4.31309,3076.8,3076.7,0.00397896]
[1642583547235,6.12632,3076.8,3076.3,0.13]
[1642583547481,0.3,3076.7,3076.0,7.6033]
[1642583547681,1.3,3076.7,3076.0,7.6033]
[1642583547884,0.3,3076.7,3076.0,7.6033]
[1642583548080,4.5,3076.7,3076.0,7.6033]
[1642583548282,3.8,3076.7,3076.0,1.2289]
[1642583548481,3.8,3076.7,3076.0,7.4447]
[1642583548684,4.8,3076.7,3076.0,7.4447]
[1642583551632,3.8,3076.7,3076.0,7.4447]
[1642583552433,3.5,3076.7,3076.3,0.13]
[1642583552634,1.6261675,3076.8,3076.7,5.17477687]
[1642583552831,1.6261675,3076.8,3076.7,7.94026242]
[1642583553232,1.6261675,3076.8,3076.7,3.69026242]
[1642583554738,1.6261675,3076.8,3076.7,0.92477687]
[1642583555886,1.6261675,3076.8,3076.7,3.69018397]
[1642583556087,2.47478213,3077.0,3076.7,3.69018397]
[1642583556288,2.47478213,3077.0,3076.7,0.92477687]
[1642583556488,0.00113685,3076.9,3076.8,2.7653138]
[1642583557188,0.81409685,3076.9,3076.8,2.7653138]
[1642583557588,0.81409685,3076.9,3076.7,0.92477687]
[1642583558632,3.25322685,3076.9,3076.7,0.92477687]
[1642583559832,0.3,3076.8,3076.7,0.92477687]
[1642583560235,3.25322685,3076.9,3076.7,3.69021325]
[1642583560433,3.25322685,3076.9,3076.8,2.76543638]
[1642583560632,2.44017685,3076.9,3076.8,2.76543638]
[1642583561033,2.44017685,3076.9,3076.8,2.76540226]
[1642583561739,0.81409685,3076.9,3076.8,2.76540226]
[1642583565313,0.00113685,3076.9,3076.8,4.75239765]
[1642583565612,0.00113685,3076.9,3076.8,2.76540226]
[1642583566010,0.00113685,3076.9,3076.8,9.91540226]
[1642583566845,3.685e-05,3076.9,3076.8,9.91540226]
[1642583567242,3.685e-05,3076.9,3076.8,10.04540226]
[1642583567645,0.8126152,3078.0,3077.3,0.0008]
[1642583567848,0.1298,3078.7,3077.7,0.01249749]
[1642583568045,0.00568423,3077.9,3077.8,3.36320226]
[1642583568247,0.00568423,3077.9,3077.8,3.52565226]
[1642583568444,3.2497797,3079.3,3077.8,4.65257702]
[1642583568445,0.01307373,3079.2,3077.8,4.65257702]
[1642583568645,0.01307373,3079.2,3077.9,4.16995226]
[1642583568845,0.01250531,3079.1,3078.0,7.05240226]
[1642583569046,0.01250531,3079.1,3078.1,2.76540226]
[1642583569245,0.01193689,3079.0,3078.1,2.76540226]
[1642583569445,0.01193689,3079.0,3078.2,0.1298]
[1642583569649,1.6246513,3079.1,3078.2,0.1298]
[1642583569650,0.01136846,3078.9,3078.3,2.76540226]
[1642583570088,0.01080004,3078.8,3078.3,4.76511994]
[1642583570289,0.01080004,3078.8,3078.2,0.8866]
[1642583570490,0.01023162,3078.7,3078.3,2.76425964]
[1642583570891,0.00966319,3078.6,3078.3,2.76425964]
[1642583571091,0.00966319,3078.6,3078.1,2.23692736]
[1642583571092,0.00966319,3078.6,3078.1,0.1298]
[1642583571293,0.00909477,3078.5,3078.0,4.287]
[1642583571492,0.00909477,3078.5,3078.1,2.76447119]
[1642583571692,0.8126,3078.3,3078.1,2.76447119]
[1642583571893,0.8126,3078.3,3078.0,6.37485034]
[1642583572093,0.0073895,3078.2,3078.1,8.11450124]
[1642583573295,0.0073895,3078.2,3078.1,2.76450124]
[1642583573493,0.0073895,3078.2,3078.0,4.287]
[1642583573940,0.00682108,3078.1,3078.0,4.287]
[1642583575344,0.00682108,3078.1,3077.9,1.2421]
[1642583575542,0.00682108,3078.1,3077.5,6.559]
[1642583575743,0.00625265,3078.0,3077.6,4.72892737]
[1642583575943,0.00625265,3078.0,3077.7,2.76471824]
[1642583576146,0.0073895,3078.2,3077.7,2.76471824]
[1642583576547,0.942351,3078.3,3077.7,2.76471824]
[1642583576548,0.00682108,3078.1,3077.7,2.76471824]
[1642583576948,0.00625265,3078.0,3077.8,1.93934075]
[1642583577149,0.00625265,3078.0,3077.9,9.91471824]
[1642583577396,0.0073895,3078.2,3077.9,9.91471824]
[1642583577596,0.468,3079.2,3077.9,7.15]
[1642583577597,0.00625265,3078.0,3077.9,7.15]
[1642583577796,0.00682108,3078.1,3077.9,7.15]
[1642583577993,0.1298,3078.7,3078.0,5.7]
[1642583578194,0.94229,3078.8,3078.0,5.7]
[1642583578395,0.82214239,3078.6,3078.0,5.7]
[1642583578799,0.00909477,3078.5,3078.0,5.7]
[1642583579198,0.00852635,3078.4,3078.1,1.9613991]
[1642583579398,0.00852635,3078.4,3078.0,5.7]
[1642583579598,0.00795792,3078.3,3078.0,5.7]
[1642583579998,0.0073895,3078.2,3078.0,5.7]
[1642583580399,0.00682108,3078.1,3078.0,5.7]
[1642583581341,0.00682108,3078.1,3078.0,7.74164618]
[1642583581542,0.00682108,3078.1,3078.0,5.7]
[1642583583848,0.00682108,3078.1,3077.7,1.1503]
[1642583584247,0.1298,3078.5,3077.7,1.1503]
[1642583584248,0.00625265,3078.0,3077.7,1.1503]
[1642583584648,0.81249,3078.8,3077.7,1.1503]
[1642583584649,0.00568423,3077.9,3077.8,0.1298]
[1642583584898,0.00568423,3077.9,3077.8,7.2798]
[1642583585098,0.00568423,3077.9,3077.8,7.15]
[1642583587601,0.00568423,3077.9,3077.7,1.1503]
[1642583588001,0.00511581,3077.8,3077.7,1.1503]
[1642583588747,0.00511581,3077.8,3077.7,5.6003]
[1642583589047,0.00511581,3077.8,3077.7,4.45]
[1642583589251,0.00511581,3077.8,3077.5,6.559]
[1642583589450,0.1298,3077.7,3077.5,6.559]
[1642583589649,0.81734688,3077.7,3077.5,6.559]
[1642583589849,0.00397896,3077.6,3077.5,6.559]
[1642583590048,0.0317613,3077.5,3077.3,0.1306]
[1642583590251,0.1298,3077.4,3077.3,0.1306]
[1642583590457,0.94553211,3077.4,3077.3,0.1306]
[1642583591651,3.69553211,3077.4,3077.3,0.1306]
[1642583591849,3.69553211,3077.4,3077.3,0.0008]
[1642583592050,5.48880167,3077.4,3077.3,0.0008]
[1642583592491,7.65176138,3077.4,3077.3,0.0008]
[1642583592996,7.65176138,3077.4,3076.9,0.00076315]
[1642583592997,0.81319,3077.2,3076.9,0.00076315]
[1642583593192,2.59707223,3077.1,3076.9,0.00076315]
[1642583593391,6.0,3077.0,3076.8,2.76547646]
[1642583593594,5.31217269,3076.9,3076.7,0.92477687]
[1642583593791,1.34876787,3076.8,3076.7,0.92477687]
[1642583593992,2.34876787,3076.8,3076.7,3.69052833]
[1642583594194,2.34876787,3076.8,3076.7,0.92591372]
[1642583594393,2.16191787,3076.8,3076.7,0.92591372]
[1642583594594,1.81315,3076.8,3076.7,0.92591372]
[1642583594996,0.81315,3076.8,3076.7,0.92591372]
[1642583595197,2.11315,3076.8,3076.7,0.92591372]
[1642583595398,0.81315,3076.8,3076.7,3.69170323]
[1642583595602,2.11315,3076.8,3076.7,0.92591372]
[1642583597448,4.24985398,3076.8,3076.7,0.92591372]
[1642583597650,4.24985398,3076.8,3075.9,0.49086301]
[1642583597651,2.4397761,3076.3,3075.9,0.49086301]
[1642583597849,2.4397761,3076.3,3076.0,2.76574598]
[1642583597850,0.81326,3076.2,3076.0,2.76574598]
[1642583598052,0.81326,3076.2,3076.0,2.76972495]
[1642583598252,0.81326,3076.2,3076.1,2.76574598]